{"text_format":"3","workbook":"xlsx","n_sheets":1,"sheets":["Pengumuman"],"not_rendered":{"images":2},"read":"whole","date_system":"1900"}

{"sheet":"Pengumuman","index":0,"n_rows":95,"n_cols":10,"rows_kept":95,"merged":[[1,0,1,8],[2,0,2,8],[4,0,5,0],[4,1,5,1],[4,2,5,2],[4,3,5,3],[4,4,5,4],[4,5,4,6],[4,7,5,7],[4,8,5,8],[4,9,5,9],[85,1,85,2],[86,1,86,2],[87,1,87,2],[88,1,88,3]]}
[]
["NILAI TES POTENSI AKADEMIK DAN TES BACA AL QURAN"]
["MAHASISWA BARU STIT NURUSSALAM TAHUN AKADEMIK 2026 - 2027"]
[]
["NO","NAMA","L/P","ASAL SEKOLAH","PROGRAM STUDI","NILAI",null,"AKUMULASI","KETERANGAN","KET"]
[{"$nulls":5},"TES POTENSI AKADEMIK","QURAN"]
[1,"ASYFIAN NUR AHMADA","L","PONOROGO, JATIM","PBA",74,90,{"$f":"(G7*75%)+(F7*25%)","v":86},"LULUS","TANJUNG KEMALA BARAT, MARTAPURA"]
[2,"MUHAMMAD ZAKY AL HUSAINI","L","SRAGEN","PBA",74,90,86,"LULUS","TANJUNG KEMALA BARAT, MARTAPURA"]
[3,"MARLENA","P","MA IZZATUL QUR'AN","MPI",80,87,{"v":85.25,"d":"85"},"LULUS","Ponpes Izzatul Qur'an Muara Enim"]
[4,"CHARITYAKNI SYAFIRA","P","PM. GONTOR","MPI",84,85,{"v":84.75,"d":"85"},"LULUS","Ponpes Izzatul Qur'an Muara Enim"]
[5,"MICHA PARAMITHA","P","PP. AL AMIEN","MPI",84,85,{"v":84.75,"d":"85"},"LULUS","Ponpes Izzatul Qur'an Muara Enim"]
[6,"PUTRI UF'UL SIAMIDAH","P","KMI NURUSSALAM","MPI",80,87,{"$f":"(G12*75%)+(F12*25%)","v":{"v":85.25,"d":"85"}},"LULUS","MARTAPURA BUNGA MAYANG"]
[7,"SIFA MUSDHALIFAH","P","GONTOR","PBA",66,90,84,"LULUS","Pengabdian Gontor"]
[8,"HANUN FIRDAUSI","P","KMI NURUSSALAM","MPI",64,90,{"v":83.5,"d":"84"},"LULUS","Nurussalam / 1 Tahun Pengabdian "]
[9,"ALFIANA RAHMANA PUTRI","P","KMI NURUSSALAM","PBA",62,90,83,"LULUS","Nurussalam / 4 Tahun Pengabdian"]
[10,"PUTRI NIA RAMADANA","P","KMI NURUSSALAM","MPI",72,85,{"v":81.75,"d":"82"},"LULUS","Ponpes Mesir Sakti, Lampung"]
[11,"FANI EKSIVA ANGELLITA","P","KMI NURUSSALAM","MPI",56,90,{"v":81.5,"d":"82"},"LULUS","Nurussalam / 4 Tahun Pengabdian "]
[12," NAZILATUL MAULIDA","P","KMI NURUSSALAM","PBA",56,90,{"v":81.5,"d":"82"},"LULUS","Nurussalam/ 1 Tahun Pengabdian"]
[13,"AJI NOVANSYAH","L","PP IZZATUL QUR'AN , MUARA ENIM","MPI",84,80,81,"LULUS","Ponpes Izzatul Qur'an Muara Enim"]
[14,"NABILA AZ-ZAHRA","P","GONTOR","PBA",54,90,81,"LULUS","Pengabdian Gontor"]
[15,"ESTINA FAJAR AGUSTIN","P","KMI NURUSSALAM","MPI",74,83,{"v":80.75,"d":"81"},"LULUS","Ponpes Mesir Sakti, Lampung"]
[16,"DELA AULIA PUTRI","P","MA IZZATUL QUR'AN","MPI",82,80,{"v":80.5,"d":"81"},"LULUS","Ponpes Izzatul Qur'an Muara Enim"]
[17,"NINTYA SYIFA M NUR","P","KMI NURUSSALAM","PBA",52,90,{"v":80.5,"d":"81"},"LULUS","Nurussalam/ 1 Tahun Pengabdian"]
[18," DITA RAHMATYA","P","KMI NURUSSALAM","MPI",50,90,80,"LULUS","Nurussalam/ 1 Tahun Pengabdian"]
[19,"MUHAMMAD IHSAN AL MUTTAQIN","L","KMI NURUSSALAM","PBA",50,90,80,"LULUS","Nurussalam / 1 Tahun Pengabdian"]
[20,"WALIYUL MUSTIQOH","P","KMI NURUSSALAM","PBA",50,90,80,"LULUS","Nurussalam / 4 Tahun Pengabdian"]
[21,"RAISYAH NAIYA","P","KMI NURUSSALAM","PBA",64,85,{"v":79.75,"d":"80"},"LULUS","Nurussalam / 1 Tahun Pengabdian"]
[22," MEILYNDA AINI AZIZAH","P","GONTOR","MPI",62,85,{"v":79.25,"d":"79"},"LULUS","Pengabdian Gontor"]
[23," RAHMA PUSPITA","P","KMI NURUSSALAM","PBA",46,90,79,"LULUS","Nurussalam/ 1 Tahun Pengabdian"]
[24,"ISYA AZ-ZAHRA AL-AFUW","P","KMI NURUSSALAM","PBA",60,85,{"v":78.75,"d":"79"},"LULUS","Nurussalam / 1 Tahun Pengabdian"]
[25,"WALIDA","P","MA PKBM MELATI MUJAHIDIN PALEMBANG","MPI",86,75,{"v":77.75,"d":"78"},"LULUS","Ponpes Adzikro Banyuasin"]
[26," CANTIKA ASSA ARDELA","P","KMI NURUSSALAM","PBA",50,85,{"v":76.25,"d":"76"},"LULUS","Nurussalam/ 1 Tahun Pengabdian"]
[27," RENDI","L","KMI NURUSSALAM","MPI",48,85,{"v":75.75,"d":"76"},"LULUS","Nurussalam / 1 Tahun Pengabdian "]
[28,"ICHA LUVIANA MARSYA","P","KMI NURUSSALAM","PBA",62,80,{"v":75.5,"d":"76"},"LULUS","Nurussalam / 4 Tahun Pengabdian"]
[29," OKTA AMAYANTI","P","KMI NURUSSALAM","PBA",32,90,{"v":75.5,"d":"76"},"LULUS","Nurussalam/ 1 Tahun Pengabdian"]
[30,"SAYYIDAH RIFDATUL BASYARIYAH","P","GONTOR","PBA",60,80,75,"LULUS","Pengabdian Gontor"]
[31,"AHNAF NABIL PRAYATA","L","GONTOR","MPI",44,85,{"v":74.75,"d":"75"},"LULUS","Pengabdian Gontor"]
[32,"RIZKI FEBRIYANSYAH","L","KMI NURUSSALAM","MPI",42,85,{"v":74.25,"d":"74"},"LULUS","Ponpes Izzatul Qur'an Muara Enim"]
[33,"M. SYAHRUL RAMADHAN","L","KMI NURUSSALAM","MPI",40,85,{"v":73.75,"d":"74"},"LULUS","Nurussalam / 4 Tahun Pengabdian"]
[34,"SALWA PUTRI HANIFAH","P","KMI NURUSSALAM","PBA",40,85,{"$f":"(G40*75%)+(F40*25%)","v":{"v":73.75,"d":"74"}},"LULUS","Nurussalam/ 1 Tahun Pengabdian"]
[35,"SRI UTAMI","P","PBKM MARLIN","MPI",54,80,{"v":73.5,"d":"74"},"LULUS","Desa Surabaya, OKU Timur"]
[36,"SATRIA PUTRA DILAGA","L","KMI NURUSSALAM","PBA",68,75,{"v":73.25,"d":"73"},"LULUS","Nurussalam / 4 Tahun Pengabdian"]
[37,"ANDRI AZIMA","L","KMI NURUSSALAM","MPI",52,80,73,"LULUS","Nurussalam / 4 Tahun Pengabdian "]
[38,"SHOFIYATUDDIN TAJUL ALAM AZZAIMI","P","KMI NURUSSALAM","MPI",48,80,72,"LULUS","Nurusslam / 4 Tahun Pengabdian"]
[39,"PUTRI WIDAYANTI","P","GONTOR","PBA",44,80,71,"LULUS","Pengabdian Gontor"]
[40,"ALFATH SABILA RAHMAN","L","KMI NURUSSALAM","PBA",58,75,{"v":70.75,"d":"71"},"LULUS","Nurusslam / 1 Tahun Pengabdian"]
[41,"ZONANDA ALVENSA DEVTA","L","KMI NURUSSALAM","PBA",42,80,{"v":70.5,"d":"71"},"LULUS","Nurusslam / 1 Tahun Pengabdian"]
[42,"M. HAMIZAN UBAIDULLAH","L","GONTOR","MPI",26,85,{"v":70.25,"d":"70"},"LULUS","Pengabdian Gontor"]
[43," VICKY FAIQ BAIHAQI","L","KMI NURUSSALAM","PBA",38,80,{"v":69.5,"d":"70"},"LULUS","Nurusslam / 1 Tahun Pengabdian"]
[44,"  AHMAD MAULANA","L","GONTOR","MPI",36,80,69,"LULUS","Pengabdian Gontor"]
[45," ALFIN FAUZI","L","KMI NURUSSALAM","PBA",46,75,{"v":67.75,"d":"68"},"LULUS","Nurusslam / 1 Tahun Pengabdian"]
[46,"  MUZLIMIN RAHMAN","L","GONTOR","MPI",28,80,67,"LULUS","1 Tahun Pengabdian / Wirausaha"]
[47," M. IKHWAN BERLIANTARA","L","KMI NURUSSALAM","MPI",56,70,{"v":66.5,"d":"67"},"LULUS","Nurusslam / 1 Tahun Pengabdian"]
[48,"SYARIFA KARIMA","P","GONTOR","PBA",54,70,66,"LULUS","Pengabdian Gontor"]
[49,"NASRULLAH PURNAMA ALAM","L","KOTA NEGARA, OKU Timur","MPI",46,70,64,"LULUS","Pandan Agung, OKU Timur"]
[50,"  M. DAVIN CAMRIC SETIA","L","GONTOR","MPI",46,70,64,"LULUS","Pengabdian Gontor"]
[51,"IQBAL AFRIANSYAH","L","KMI NURUSSALAM","MPI",42,70,63,"LULUS","Nurusslam / 4 Tahun Pengabdian"]
[52," SULTAN SAMI DEAN FACHRI","L","KMI NURUSSALAM","MPI",40,70,{"v":62.5,"d":"63"},"LULUS","1 Tahun Pengabdian / Wirausaha"]
[53," M. ALIF ARKHAN","L","KMI NURUSSALAM","PBA",40,70,{"v":62.5,"d":"63"},"LULUS","1 Tahun Pengabdian / Wirausaha"]
[54,"M. ALDO TALITA PUTRA","L","KMI NURUSSALAM","MPI",38,70,62,"LULUS","Nurussalam / 4 Tahun Pengabdian"]
[55,"CHAYSA HILMI","L","PONPES ALMUKMIN JATENG","MPI",38,70,62,"LULUS","Banyumas Asri BK 3 , OKU Timur"]
[56,"IZZULLAH FIKRI FU'ADI","L","KMI NURUSSALAM","PBA",36,70,{"v":61.5,"d":"62"},"LULUS","1 Tahun Pengabdian / Wirausaha"]
[57,"RIRIN NUR ARYANTI","P","KMI NURUSSALAM","PBA",36,70,{"v":61.5,"d":"62"},"LULUS","Nurussalam/ 1 Tahun Pengabdian"]
[58,"  MUHAMMAD FAQIH","L","KMI NURUSSALAM","MPI",34,70,61,"LULUS","Nurusslam / 1 Tahun Pengabdian"]
[59,"FAHRI KHOIRUL ANAM","L","KMI NURUSSALAM","PBA",34,70,61,"LULUS","Nurusslam / 1 Tahun Pengabdian"]
[60,"AKSA HEVEA PUTRA","L","KMI NURUSSALAM","MPI",30,70,60,"LULUS","Nurussalam / 4 Tahun Pengabdian "]
[61,"ABDUL RAHMAN","L","KMI NURUSSALAM","MPI",30,70,60,"LULUS","Pengabdian Gontor"]
[62,"  AFRA RIFQI ALFINO BASUKI","L","KMI NURUSSALAM","PBA",26,70,59,"LULUS","Nurusslam / 1 Tahun Pengabdian"]
[63,"PANDU WIJAYA","L","KMI NURUSSALAM","MPI",38,65,{"v":58.25,"d":"58"},"LULUS","1 Tahun Pengabdian / Wirausaha"]
[64,"TAZKIA AZIZAH AHMAD","P","KMI NURUSSALAM","PBA",38,65,{"v":58.25,"d":"58"},"LULUS","Nurussalam / 4 Tahun Pengabdian"]
[65,"EDI SUCIPTO","L","KMI NURUSSALAM","PBA",22,70,58,"LULUS","1 Tahun Pengabdian / Wirausaha"]
[66,"AHMAD SYAHRUL RIDWAN","L","KMI NURUSSALAM","MPI",20,70,{"$f":"(G72*75%)+(F72*25%)","v":{"v":57.5,"d":"58"}},"LULUS","1 Tahun Pengabdian / Wirausaha"]
[67,"AFNAN DWI AFRIZAL","L","KMI NURUSSALAM","PBA",20,70,{"v":57.5,"d":"58"},"LULUS","Nurusslam / 1 Tahun Pengabdian"]
[68,"NABIL RIDO","L","KMI NURUSSALAM","PBA",34,65,{"v":57.25,"d":"57"},"LULUS","1 Tahun Pengabdian/Wirausaha"]
[69,"ENJEL FITRI ANDANI","P","KMI NURUSSALAM","PBA",30,65,{"v":56.25,"d":"56"},"LULUS","Nurussalam / 4 Tahun Pengabdian"]
[70,"AULIA MUHLISZAKI","L","KMI NURUSSALAM","PBA",24,65,{"v":54.75,"d":"55"},"LULUS","1 Tahun Pengabdian / Wirausaha"]
[71,"BIMA RAHMADANI","L","KMI NURUSSALAM","MPI",82,null,{"v":20.5,"d":"21"},"LULUS / ( interview Susulan)","Nurussalam / 1 Tahun Pengabdian "]
[72,"ARYA BIMA SYAH PUTRA","L","MEKAR JAYA. OKU TIMUR","MPI",null,null,0,"Susulan","Mekar Jaya, Oku Timur"]
[73,"VIKA NOFIANA","p","KMI NURUSSALAM","PBA",{"$nulls":3},"Tidak Lulus"]
[74,"M. AGHA DZAKWAN FADHIL","L","KMI NURUSSALAM","MPI",{"$nulls":3},"Tidak Lulus"]
[75,"MUAMAR RAFIQ","L","KMI NURUSSALAM","MPI",{"$nulls":3},"Tidak Lulus"]
[76,"ANNISA RAMADHANI","P","KMI NURUSSALAM","MPI",{"$nulls":3},"Tidak Lulus"]
[77,"RIAN HIDAYAT","L","KMI NURUSSALAM","MPI",{"$nulls":3},"Tidak Lulus"]
[78,"MUAMAR RAFIQ","L","KMI NURUSSALAM","MPI",{"$nulls":3},"Tidak Lulus"]
[]
[null,"   Oku Timur, 20 Agustus 2026"]
[null,"              Mengetahui,"]
[null,"An. Ketua STIT Nurussalam"]
[null,"            Wakil Ketua Bidang Akademik dan Kemahasiswaan"]
[]
[]
[]
[]
[]
[null,"Ahmad Taher Ichsan, M.Pd."]